[Event "23rd Hogeschool Zeeland Open 2019"]
[Site "Vlissingen"]
[Date "2019.08.09"]
[Round "8.11"]
[White "Stange, Sven"]
[Black "Klepke, Ricardo"]
[Result "0-1"]
[ECO "A80"]
[WhiteElo "2167"]
[BlackElo "2267"]
[Annotator "ChessBase"]
[PlyCount "110"]
[EventDate "2019.08.03"]
[EventType "swiss"]
[EventCountry "NED"]
[SourceTitle "playchess.com"]
[Source "ChessBase"]
[SourceQuality "1"]
[TimeControl "40/5400+30:1800+30"]

1. d4 {[%emt 0:00:00]} f5 {[%emt 0:00:00]} 2. Nc3 {[%emt 0:00:00]} Nf6 {[%emt 0:00:00]} 3. Bg5 {[%emt 0:00:00]} d5 {[%emt 0:00:00]} 4. Bxf6 {[%emt 0:00:00]} exf6 {[%emt 0:00:03]} 5. e3 {[%emt 0:00:05]} Be6 {[%emt 0:00:07]} 6. Bd3 {[%emt 0:00:19]} Qd7 {[%emt 0:00:45]} 7. Qf3 {[%emt 0:01:37]} Nc6 {[%emt 0:00:31]} 8. Nge2 {[%emt 0:01:10]} O-O-O {[%emt 0:00:43]} 9. Nf4 {[%emt 0:07:45]} Bf7 {[%emt 0:01:06]} 10. Nfe2 {[%emt 0:11:28]} g6 {[%emt 0:08:33]} 11. h3 {[%emt 0:01:31]} h5 {[%emt 0:00:40]} 12. O-O-O {[%emt 0:01:58]} Nb4 {[%emt 0:07:22]} 13. Kb1 {[%emt 0:08:32]} Nxd3 {[%emt 0:06:27]} 14. Rxd3 {[%emt 0:01:11]} h4 {[%emt 0:03:46]} 15. g3 {[%emt 0:06:30]} g5 {[%emt 0:09:49]} 16. Qg2 {[%emt 0:02:04]} Bd6 {[%emt 0:06:21]} 17. f4 {[%emt 0:03:17]} hxg3 {[%emt 0:02:10]} 18. Qxg3 {[%emt 0:00:25]} Rdg8 {[%emt 0:08:38]} 19. Qf2 {[%emt 0:02:50]} Rh7 {[%emt 0:09:41]} 20. Ng1 {[%emt 0:10:02]} Be6 {[%emt 0:09:24]} 21. Nce2 {[%emt 0:01:39]} Qg7 {[%emt 0:00:58]} 22. Rh2 {[%emt 0:06:54]} Qh6 {[%emt 0:06:01]} 23. Rg2 {[%emt 0:01:25]} Qh4 {[%emt 0:01:25]} 24. Qxh4 {[%emt 0:07:23]} Rxh4 {[%emt 0:00:08]} 25. c3 {[%emt 0:02:02]} Bf7 {[%emt 0:04:19]} 26. Rf2 {[%emt 0:10:30]} Kd7 {[%emt 0:04:39]} 27. Kc1 {[%emt 0:02:17]} Ke6 {[%emt 0:00:25]} 28. Rd1 {[%emt 0:00:27]} Bh5 {[%emt 0:00:40]} 29. Rdf1 {[%emt 0:01:15]} Bxe2 {[%emt 0:02:58]} 30. Rxe2 {[%emt 0:00:25]} gxf4 {[%emt 0:00:19]} 31. exf4+ {[%emt 0:00:20]} Kf7 {[%emt 0:00:06]} 32. Ref2 {[%emt 0:00:33]} Bxf4+ {[%emt 0:02:03]} 33. Rxf4 {[%emt 0:01:46]} Rxf4 {[%emt 0:00:08]} 34. Rxf4 {[%emt 0:00:09]} Rxg1+ {[%emt 0:00:06]} 35. Kd2 {[%emt 0:01:10]} Kg6 {[%emt 0:00:45]} 36. Rf2 {[%emt 0:01:53]} Rh1 {[%emt 0:04:45]} 37. Rg2+ {[%emt 0:00:30]} Kh5 {[%emt 0:00:40]} 38. Ke3 {[%emt 0:01:04]} Re1+ {[%emt 0:00:53]} 39. Kd2 {[%emt 0:01:53]} Rb1 {[%emt 0:00:26]} 40. Kc2 {[%emt 0:02:02]} Rh1 {[%emt 0:00:38]} 41. Rg7 {[%emt 0:31:14]} f4 {[%emt 0:31:27]} 42. Kd3 {[%emt 0:00:00]} Rh2 {[%emt 0:00:00]} 43. Rxc7 {[%emt 0:00:00]} Rxb2 {[%emt 0:00:00]} 44. c4 {[%emt 0:00:00]} dxc4+ {[%emt 0:00:00]} 45. Rxc4 {[%emt 0:00:00]} f3 {[%emt 0:00:00]} 46. Ke3 {[%emt 0:00:00]} f2 {[%emt 0:00:00]} 47. Rc1 {[%emt 0:00:00]} Kh4 {[%emt 0:00:00]} 48. d5 {[%emt 0:00:00]} Kg3 {[%emt 0:00:00]} 49. Rd1 {[%emt 0:01:57]} Rb5 {[%emt 0:00:00]} 50. d6 {[%emt 0:01:02]} Re5+ {[%emt 0:00:00]} 51. Kd4 {[%emt 0:00:23]} Rf5 {[%emt 0:00:00]} 52. Rf1 {[%emt 0:01:51]} Kg2 {[%emt 0:00:00]} 53. d7 {[%emt 0:00:19]} Kxf1 {[%emt 0:00:00]} 54. d8=Q {[%emt 0:00:13]} Kg1 {[%emt 0:00:00]} 55. Qg8+ {[%emt 0:01:07]} Rg5 {[%emt 0:00:00]} 0-1

[Event "23rd Hogeschool Zeeland Open 2019"]
[Site "Vlissingen"]
[Date "2019.08.09"]
[Round "8.13"]
[White "Westerweele, Henrik"]
[Black "Bezemer, Arno"]
[Result "0-1"]
[ECO "B22"]
[WhiteElo "1961"]
[BlackElo "2245"]
[Annotator "NA"]
[PlyCount "50"]
[EventDate "2019.08.03"]
[EventType "swiss"]
[EventCountry "NED"]
[SourceTitle "playchess.com"]
[Source "ChessBase"]
[SourceQuality "1"]
[TimeControl "40/5400+30:1800+30"]

1. e4 {[%emt 0:08:00]} c5 {[%emt 0:00:00]} 2. c3 {[%emt 0:00:09]} Nf6 {[%emt 0:00:00]} 3. e5 {[%emt 0:00:38]} Nd5 {[%emt 0:00:00]} 4. d4 {[%emt 0:00:59]} cxd4 {[%emt 0:00:00]} 5. Nf3 {[%emt 0:00:20]} d6 {[%emt 0:00:40]} 6. exd6 {[%emt 0:00:24]} e6 {[%emt 0:01:26]} 7. cxd4 {[%emt 0:00:50]} Bxd6 {[%emt 0:00:07]} 8. Nc3 {[%emt 0:01:14]} Nxc3 {[%emt 0:01:01]} 9. bxc3 {[%emt 0:00:08]} O-O {[%emt 0:00:52]} 10. Bd3 {[%emt 0:01:03]} Nd7 {[%emt 0:00:58]} 11. O-O {[%emt 0:02:42]} b6 {[%emt 0:00:31]} 12. Ng5 {[%emt 0:10:56]} Nf6 {[%emt 0:06:02]} 13. Qf3 {[%emt 0:05:51]} Rb8 {[%emt 0:02:57]} 14. Re1 {[%emt 0:03:15]} Bb7 {[%emt 0:04:36]} 15. Qh3 {[%emt 0:04:55]} h6 {[%emt 0:04:10]} 16. Nf3 {[%emt 0:02:36]} Re8 {[%emt 0:07:04]} 17. Ne5 {[%emt 0:09:46]} Rc8 {[%emt 0:07:38]} 18. Bxh6 {[%emt 0:12:19]} gxh6 {[%emt 0:02:52]} 19. Re3 {[%emt 0:01:10]} h5 {[%emt 0:14:28]} 20. Qg3+ {[%emt 0:07:56]} Kf8 {[%emt 0:08:52]} 21. Qf4 {[%emt 0:02:53]} Bxe5 {[%emt 0:02:54]} 22. Qh6+ {[%emt 0:01:14]} Ke7 {[%emt 0:00:49]} 23. dxe5 {[%emt 0:01:12]} Ng4 {[%emt 0:02:48]} 24. Qf4 {[%emt 0:15:45]} Nxe3 {[%emt 0:01:48]} 25. Qxe3 {[%emt 0:01:13]} Rg8 {[%emt 0:01:54]} 0-1

[Event "23rd Hogeschool Zeeland Open 2019"]
[Site "Vlissingen"]
[Date "2019.08.09"]
[Round "8.14"]
[White "Cordes, Hans-Joerg"]
[Black "Merbis, Max"]
[Result "1-0"]
[ECO "D37"]
[WhiteElo "2178"]
[BlackElo "2103"]
[Annotator "NA"]
[PlyCount "51"]
[EventDate "2019.08.03"]
[EventType "swiss"]
[EventCountry "NED"]
[SourceTitle "playchess.com"]
[Source "ChessBase"]
[SourceQuality "1"]
[TimeControl "40/5400+30:1800+30"]

1. d4 {[%emt 0:00:00]} d5 {[%emt 0:00:00]} 2. Nf3 {[%emt 0:00:00]} Nf6 {[%emt 0:00:00]} 3. c4 {[%emt 0:00:10]} e6 {[%emt 0:00:29]} 4. Nc3 {[%emt 0:00:14]} Be7 {[%emt 0:00:08]} 5. Bf4 {[%emt 0:00:17]} O-O {[%emt 0:00:13]} 6. e3 {[%emt 0:00:06]} b6 {[%emt 0:00:07]} 7. Bd3 {[%emt 0:00:57]} dxc4 {[%emt 0:08:12]} 8. Bxc4 {[%emt 0:00:10]} Ba6 {[%emt 0:00:18]} 9. Qe2 {[%emt 0:03:38]} Bxc4 {[%emt 0:07:32]} 10. Qxc4 {[%emt 0:00:09]} c5 {[%emt 0:00:13]} 11. O-O {[%emt 0:13:56]} Nc6 {[%emt 0:12:49]} 12. Rfd1 {[%emt 0:05:03]} Qc8 {[%emt 0:08:26]} 13. Rac1 {[%emt 0:15:13]} Qb7 {[%emt 0:13:25]} 14. dxc5 {[%emt 0:02:25]} bxc5 {[%emt 0:03:21]} 15. Na4 {[%emt 0:01:41]} Rac8 {[%emt 0:03:43]} 16. b3 {[%emt 0:05:12]} Nd5 {[%emt 0:05:58]} 17. Bg5 {[%emt 0:01:15]} Bxg5 {[%emt 0:12:12]} 18. Nxg5 {[%emt 0:00:08]} Na5 {[%emt 0:00:47]} 19. Nxc5 {[%emt 0:16:37]} Nxc4 {[%emt 0:01:16]} 20. Nxb7 {[%emt 0:00:06]} Nb2 {[%emt 0:01:13]} 21. Nd6 {[%emt 0:01:42]} Nc3 {[%emt 0:02:33]} 22. Nxc8 {[%emt 0:00:48]} Nbxd1 {[%emt 0:01:46]} 23. Ne7+ {[%emt 0:01:54]} Kh8 {[%emt 0:00:01]} 24. Kf1 {[%emt 0:00:42]} f6 {[%emt 0:04:12]} 25. Nxe6 {[%emt 0:06:03]} Re8 {[%emt 0:00:12]} 26. Nd5 {[%emt 0:00:25]} 1-0

[Event "23rd Hogeschool Zeeland Open 2019"]
[Site "Vlissingen"]
[Date "2019.08.09"]
[Round "8.15"]
[White "Nebolsina, Vera"]
[Black "De Zwart, Johan"]
[Result "1-0"]
[ECO "C81"]
[WhiteElo "2269"]
[BlackElo "1989"]
[Annotator "NA"]
[PlyCount "57"]
[EventDate "2019.08.03"]
[EventType "swiss"]
[EventCountry "NED"]
[SourceTitle "playchess.com"]
[Source "ChessBase"]
[SourceQuality "1"]
[TimeControl "40/5400+30:1800+30"]

1. e4 {[%emt 0:00:00]} e5 {[%emt 0:00:00]} 2. Nf3 {[%emt 0:00:00]} Nc6 {[%emt 0:00:00]} 3. Bb5 {[%emt 0:00:00]} a6 {[%emt 0:00:00]} 4. Ba4 {[%emt 0:00:02]} Nf6 {[%emt 0:00:00]} 5. O-O {[%emt 0:00:15]} Nxe4 {[%emt 0:00:50]} 6. d4 {[%emt 0:07:21]} b5 {[%emt 0:00:14]} 7. Bb3 {[%emt 0:00:10]} d5 {[%emt 0:00:05]} 8. dxe5 {[%emt 0:01:12]} Be6 {[%emt 0:00:06]} 9. Qe2 {[%emt 0:05:55]} Bc5 {[%emt 0:02:29]} 10. Nbd2 {[%emt 0:09:51]} Nxd2 {[%emt 0:13:41]} 11. Bxd2 {[%emt 0:00:15]} Qd7 {[%emt 0:03:36]} 12. a4 {[%emt 0:06:26]} Rb8 {[%emt 0:00:45]} 13. axb5 {[%emt 0:06:43]} axb5 {[%emt 0:00:13]} 14. Rfd1 {[%emt 0:02:06]} O-O {[%emt 0:09:14]} 15. Be3 {[%emt 0:00:39]} Bxe3 {[%emt 0:03:22]} 16. Qxe3 {[%emt 0:00:10]} Rfd8 {[%emt 0:00:12]} 17. c3 {[%emt 0:11:58]} Ne7 {[%emt 0:10:39]} 18. Ra7 {[%emt 0:03:51]} Nc8 {[%emt 0:03:26]} 19. Ra6 {[%emt 0:04:08]} Nb6 {[%emt 0:00:33]} 20. Nd4 {[%emt 0:12:07]} Ra8 {[%emt 0:06:06]} 21. Rda1 {[%emt 0:05:02]} Rxa6 {[%emt 0:02:20]} 22. Rxa6 {[%emt 0:00:06]} Ra8 {[%emt 0:05:53]} 23. Rxa8+ {[%emt 0:01:27]} Nxa8 {[%emt 0:00:17]} 24. Bc2 {[%emt 0:01:22]} c6 {[%emt 0:14:35]} 25. f4 {[%emt 0:00:44]} c5 {[%emt 0:07:29]} 26. Nxe6 {[%emt 0:00:24]} fxe6 {[%emt 0:00:39]} 27. Qxc5 {[%emt 0:00:06]} Kf7 {[%emt 0:01:53]} 28. Bd3 {[%emt 0:01:48]} Nc7 {[%emt 0:02:24]} 29. Qd6 {[%emt 0:00:46]} 1-0

[Event "23rd Hogeschool Zeeland Open 2019"]
[Site "Vlissingen"]
[Date "2019.08.09"]
[Round "8.16"]
[White "Zwirs, Jasper"]
[Black "Weber, Dirk"]
[Result "0-1"]
[ECO "C41"]
[WhiteElo "2110"]
[BlackElo "2227"]
[Annotator "ChessBase"]
[PlyCount "100"]
[EventDate "2019.08.03"]
[EventType "swiss"]
[EventCountry "NED"]
[SourceTitle "playchess.com"]
[Source "ChessBase"]
[SourceQuality "1"]
[TimeControl "40/5400+30:1800+30"]

1. e4 {[%emt 0:00:00]} e5 {[%emt 0:00:17]} 2. Nf3 {[%emt 0:00:00]} d6 {[%emt 0:00:27]} 3. d4 {[%emt 0:00:12]} Nf6 {[%emt 0:00:28]} 4. dxe5 {[%emt 0:01:16]} Nxe4 {[%emt 0:00:10]} 5. Qd5 {[%emt 0:01:01]} Nc5 {[%emt 0:00:31]} 6. Bg5 {[%emt 0:00:39]} Qd7 {[%emt 0:01:51]} 7. Nc3 {[%emt 0:02:29]} c6 {[%emt 0:05:49]} 8. Qd2 {[%emt 0:07:53]} dxe5 {[%emt 0:21:40]} 9. Nxe5 {[%emt 0:05:50]} Qxd2+ {[%emt 0:00:31]} 10. Bxd2 {[%emt 0:00:05]} Bd6 {[%emt 0:02:02]} 11. Nc4 {[%emt 0:12:38]} Bc7 {[%emt 0:05:35]} 12. O-O-O {[%emt 0:00:25]} Be6 {[%emt 0:02:59]} 13. Bg5 {[%emt 0:12:44]} f6 {[%emt 0:08:05]} 14. Be3 {[%emt 0:02:20]} Nbd7 {[%emt 0:00:53]} 15. Nd6+ {[%emt 0:09:42]} Ke7 {[%emt 0:03:30]} 16. Nde4 {[%emt 0:00:34]} Nxe4 {[%emt 0:02:12]} 17. Nxe4 {[%emt 0:00:18]} Rhd8 {[%emt 0:02:55]} 18. Be2 {[%emt 0:05:58]} Bb6 {[%emt 0:04:15]} 19. Bf4 {[%emt 0:04:04]} Ne5 {[%emt 0:00:23]} 20. Bg3 {[%emt 0:04:18]} Rd5 {[%emt 0:05:18]} 21. Nc3 {[%emt 0:04:56]} Rxd1+ {[%emt 0:04:23]} 22. Rxd1 {[%emt 0:01:44]} g5 {[%emt 0:01:20]} 23. Ne4 {[%emt 0:08:03]} h6 {[%emt 0:05:18]} 24. h4 {[%emt 0:04:23]} Bd5 {[%emt 0:02:40]} 25. f3 {[%emt 0:02:27]} Nf7 {[%emt 0:04:55]} 26. Nc3 {[%emt 0:01:42]} Be6 {[%emt 0:01:08]} 27. Re1 {[%emt 0:01:12]} Be3+ {[%emt 0:04:37]} 28. Kb1 {[%emt 0:00:04]} Bd2 {[%emt 0:00:12]} 29. Rh1 {[%emt 0:03:29]} f5 {[%emt 0:01:30]} 30. hxg5 {[%emt 0:00:50]} hxg5 {[%emt 0:00:12]} 31. Bf2 {[%emt 0:00:53]} b6 {[%emt 0:01:54]} 32. g3 {[%emt 0:00:50]} Rh8 {[%emt 0:03:18]} 33. Rxh8 {[%emt 0:01:01]} Nxh8 {[%emt 0:00:06]} 34. a4 {[%emt 0:01:56]} Ng6 {[%emt 0:02:36]} 35. Nd1 {[%emt 0:00:11]} f4 {[%emt 0:00:18]} 36. c3 {[%emt 0:01:00]} Bf5+ {[%emt 0:00:38]} 37. Ka2 {[%emt 0:00:19]} Ne5 {[%emt 0:01:04]} 38. Kb3 {[%emt 0:00:21]} c5 {[%emt 0:00:42]} 39. g4 {[%emt 0:00:41]} Bg6 {[%emt 0:01:13]} 40. c4 {[%emt 0:00:51]} Ke6 {[%emt 0:01:01]} 41. Bg1 {[%emt 0:08:12]} Nc6 {[%emt 0:09:07]} 42. Nc3 {[%emt 0:03:24]} Be3 {[%emt 0:03:21]} 43. Bh2 {[%emt 0:11:45]} Ke5 {[%emt 0:05:17]} 44. Bd1 {[%emt 0:04:01]} Bd3 {[%emt 0:03:43]} 45. Nd5 {[%emt 0:04:05]} Bd4 {[%emt 0:01:43]} 46. Nc7 {[%emt 0:01:25]} Na5+ {[%emt 0:01:24]} 47. Ka2 {[%emt 0:00:05]} Bxc4+ {[%emt 0:00:42]} 48. b3 {[%emt 0:00:08]} Bd3 {[%emt 0:00:38]} 49. Nb5 {[%emt 0:00:08]} Nc6 {[%emt 0:03:06]} 50. Nxd4 {[%emt 0:01:09]} Kxd4 {[%emt 0:00:09]} 0-1

[Event "23rd Hogeschool Zeeland Open 2019"]
[Site "Vlissingen"]
[Date "2019.08.10"]
[Round "9.4"]
[White "Klepke, Ricardo"]
[Black "Werle, Jan"]
[Result "1/2-1/2"]
[ECO "A64"]
[WhiteElo "2267"]
[BlackElo "2555"]
[Annotator "ChessBase"]
[PlyCount "107"]
[EventDate "2019.08.03"]
[EventType "swiss"]
[EventCountry "NED"]
[SourceTitle "playchess.com"]
[Source "ChessBase"]
[SourceQuality "1"]
[TimeControl "40/5400+30:1800+30"]

1. d4 {[%emt 0:00:00]} Nf6 {[%emt 0:00:00]} 2. c4 {[%emt 0:00:00]} e6 {[%emt 0:00:00]} 3. g3 {[%emt 0:00:00]} c5 {[%emt 0:00:24]} 4. d5 {[%emt 0:00:13]} exd5 {[%emt 0:00:16]} 5. cxd5 {[%emt 0:00:09]} d6 {[%emt 0:00:13]} 6. Bg2 {[%emt 0:00:11]} g6 {[%emt 0:02:01]} 7. Nf3 {[%emt 0:00:14]} Bg7 {[%emt 0:00:15]} 8. O-O {[%emt 0:00:10]} O-O {[%emt 0:00:38]} 9. Nfd2 {[%emt 0:00:12]} Re8 {[%emt 0:03:23]} 10. Nc3 {[%emt 0:00:32]} Nbd7 {[%emt 0:04:10]} 11. a4 {[%emt 0:03:29]} a6 {[%emt 0:10:08]} 12. a5 {[%emt 0:00:29]} b5 {[%emt 0:10:29]} 13. axb6 {[%emt 0:00:39]} Nxb6 {[%emt 0:00:05]} 14. e4 {[%emt 0:03:32]} c4 {[%emt 0:05:55]} 15. h3 {[%emt 0:14:04]} Nfd7 {[%emt 0:06:05]} 16. Na4 {[%emt 0:03:55]} Ne5 {[%emt 0:01:37]} 17. Nxb6 {[%emt 0:06:33]} Qxb6 {[%emt 0:00:08]} 18. Kh2 {[%emt 0:00:20]} Qb5 {[%emt 0:08:33]} 19. Qc2 {[%emt 0:06:17]} Bd7 {[%emt 0:13:23]} 20. f4 {[%emt 0:04:21]} Nd3 {[%emt 0:02:44]} 21. Nxc4 {[%emt 0:01:30]} Rac8 {[%emt 0:09:54]} 22. Qxd3 {[%emt 0:00:29]} Rxc4 {[%emt 0:00:04]} 23. Bd2 {[%emt 0:18:21]} Rcc8 {[%emt 0:09:18]} 24. Qxb5 {[%emt 0:16:48]} Bxb5 {[%emt 0:00:02]} 25. Rfe1 {[%emt 0:01:11]} Bxb2 {[%emt 0:00:47]} 26. Ra2 {[%emt 0:00:27]} Bd4 {[%emt 0:02:02]} 27. Bb4 {[%emt 0:00:40]} Bc5 {[%emt 0:01:06]} 28. Bxc5 {[%emt 0:00:41]} Rxc5 {[%emt 0:00:03]} 29. g4 {[%emt 0:02:21]} Rxd5 {[%emt 0:00:59]} 30. Rc1 {[%emt 0:01:55]} Rd4 {[%emt 0:01:00]} 31. Rc7 {[%emt 0:00:19]} Kf8 {[%emt 0:02:39]} 32. h4 {[%emt 0:00:58]} Re7 {[%emt 0:00:11]} 33. Rc8+ {[%emt 0:00:11]} Re8 {[%emt 0:00:21]} 34. Rc7 {[%emt 0:00:11]} Re7 {[%emt 0:00:05]} 35. Rc8+ {[%emt 0:00:10]} Kg7 {[%emt 0:00:07]} 36. g5 {[%emt 0:01:01]} h6 {[%emt 0:02:13]} 37. Kg3 {[%emt 0:00:50]} f5 {[%emt 0:04:10]} 38. exf5 {[%emt 0:01:13]} gxf5 {[%emt 0:00:05]} 39. Rac2 {[%emt 0:00:39]} hxg5 {[%emt 0:00:17]} 40. hxg5 {[%emt 0:01:00]} Rd3+ {[%emt 0:01:05]} 41. Kf2 {[%emt 0:32:16]} Rd4 {[%emt 0:31:48]} 42. Kg3 {[%emt 0:00:24]} a5 {[%emt 0:00:00]} 43. R2c7 {[%emt 0:00:00]} Rxc7 {[%emt 0:00:00]} 44. Rxc7+ {[%emt 0:00:00]} Kg6 {[%emt 0:00:00]} 45. Bc6 {[%emt 0:00:00]} Bxc6 {[%emt 0:00:00]} 46. Rxc6 {[%emt 0:00:00]} Kh5 {[%emt 0:00:00]} 47. Ra6 {[%emt 0:00:00]} a4 {[%emt 0:00:00]} 48. Kf3 {[%emt 0:00:00]} Rb4 {[%emt 0:00:00]} 49. Rxd6 {[%emt 0:00:00]} Rb3+ {[%emt 0:00:00]} 50. Kf2 {[%emt 0:00:00]} a3 {[%emt 0:00:00]} 51. Ra6 {[%emt 0:00:00]} Kg4 {[%emt 0:00:06]} 52. g6 {[%emt 0:00:00]} Rb2+ {[%emt 0:01:01]} 53. Ke3 {[%emt 0:00:00]} Rb3+ {[%emt 0:00:58]} 54. Kf2 {[%emt 0:00:00]} 1/2-1/2

[Event "23rd Hogeschool Zeeland Open 2019"]
[Site "Vlissingen"]
[Date "2019.08.10"]
[Round "9.5"]
[White "Ikonnikov, Vyacheslav"]
[Black "Elgersma, Onno"]
[Result "1-0"]
[ECO "E52"]
[WhiteElo "2499"]
[BlackElo "2232"]
[Annotator "ChessBase"]
[PlyCount "71"]
[EventDate "2019.08.03"]
[EventType "swiss"]
[EventCountry "NED"]
[SourceTitle "playchess.com"]
[Source "ChessBase"]
[SourceQuality "1"]
[TimeControl "40/5400+30:1800+30"]

1. d4 {[%emt 0:00:00]} Nf6 {[%emt 0:00:00]} 2. c4 {[%emt 0:00:00]} e6 {[%emt 0:00:00]} 3. Nc3 {[%emt 0:00:04]} Bb4 {[%emt 0:00:18]} 4. Bd2 {[%emt 0:00:09]} b6 {[%emt 0:07:23]} 5. e3 {[%emt 0:00:41]} Bb7 {[%emt 0:00:11]} 6. Nf3 {[%emt 0:00:12]} O-O {[%emt 0:00:34]} 7. Bd3 {[%emt 0:00:24]} d5 {[%emt 0:01:32]} 8. O-O {[%emt 0:05:21]} Bd6 {[%emt 0:04:57]} 9. cxd5 {[%emt 0:14:50]} exd5 {[%emt 0:00:21]} 10. Nb5 {[%emt 0:00:22]} Be7 {[%emt 0:00:56]} 11. Rc1 {[%emt 0:01:42]} c5 {[%emt 0:17:14]} 12. Ne5 {[%emt 0:04:31]} Nc6 {[%emt 0:08:28]} 13. Nxc6 {[%emt 0:10:15]} Bxc6 {[%emt 0:00:15]} 14. dxc5 {[%emt 0:00:08]} bxc5 {[%emt 0:00:57]} 15. Nd4 {[%emt 0:00:06]} cxd4 {[%emt 0:12:36]} 16. Rxc6 {[%emt 0:00:11]} Qd7 {[%emt 0:01:22]} 17. Qc2 {[%emt 0:00:38]} Rac8 {[%emt 0:06:40]} 18. Rc1 {[%emt 0:00:44]} Rxc6 {[%emt 0:03:19]} 19. Qxc6 {[%emt 0:00:09]} Qg4 {[%emt 0:02:06]} 20. h3 {[%emt 0:14:20]} Qh4 {[%emt 0:02:33]} 21. Qa4 {[%emt 0:02:04]} Ne4 {[%emt 0:07:43]} 22. Bxe4 {[%emt 0:00:27]} dxe4 {[%emt 0:02:13]} 23. exd4 {[%emt 0:00:42]} Bg5 {[%emt 0:03:57]} 24. Qa5 {[%emt 0:03:55]} Bxd2 {[%emt 0:03:21]} 25. Qxd2 {[%emt 0:00:07]} Qe7 {[%emt 0:00:51]} 26. d5 {[%emt 0:00:25]} Qd6 {[%emt 0:00:45]} 27. Rc6 {[%emt 0:04:29]} Qd7 {[%emt 0:00:06]} 28. Qd4 {[%emt 0:00:04]} f5 {[%emt 0:02:35]} 29. Qe5 {[%emt 0:01:42]} Rc8 {[%emt 0:02:22]} 30. Re6 {[%emt 0:01:59]} Qf7 {[%emt 0:01:54]} 31. d6 {[%emt 0:02:19]} Kf8 {[%emt 0:01:45]} 32. Re7 {[%emt 0:06:34]} Qg6 {[%emt 0:03:35]} 33. d7 {[%emt 0:03:58]} Rd8 {[%emt 0:00:10]} 34. Re6 {[%emt 0:00:06]} Qf7 {[%emt 0:01:27]} 35. Qd6+ {[%emt 0:00:08]} Kg8 {[%emt 0:00:13]} 36. Re7 {[%emt 0:00:09]} 1-0

[Event "23rd Hogeschool Zeeland Open 2019"]
[Site "Vlissingen"]
[Date "2019.08.10"]
[Round "9.7"]
[White "Wunnink, Michael"]
[Black "De Jong, Migchiel"]
[Result "1/2-1/2"]
[ECO "E04"]
[WhiteElo "2214"]
[BlackElo "2345"]
[Annotator "NA"]
[PlyCount "25"]
[EventDate "2019.08.03"]
[EventType "swiss"]
[EventCountry "NED"]
[SourceTitle "playchess.com"]
[Source "ChessBase"]
[SourceQuality "1"]
[TimeControl "40/5400+30:1800+30"]

1. d4 {[%emt 0:00:00]} e6 {[%emt 0:00:00]} 2. c4 {[%emt 0:00:00]} Bb4+ {[%emt 0:00:00]} 3. Bd2 {[%emt 0:00:24]} a5 {[%emt 0:00:18]} 4. g3 {[%emt 0:01:33]} Nf6 {[%emt 0:00:19]} 5. Bg2 {[%emt 0:00:58]} d5 {[%emt 0:00:16]} 6. Nf3 {[%emt 0:05:24]} dxc4 {[%emt 0:02:02]} 7. Qc2 {[%emt 0:00:40]} Bxd2+ {[%emt 0:01:52]} 8. Qxd2 {[%emt 0:03:44]} c6 {[%emt 0:04:31]} 9. a4 {[%emt 0:06:51]} Ne4 {[%emt 0:00:50]} 10. Qf4 {[%emt 0:05:34]} Nd6 {[%emt 0:01:43]} 11. Na3 {[%emt 0:00:39]} Na6 {[%emt 0:01:47]} 12. Ne5 {[%emt 0:02:32]} Nb4 {[%emt 0:15:46]} 13. O-O {[%emt 0:08:24]} 1/2-1/2

[Event "23rd Hogeschool Zeeland Open 2019"]
[Site "Vlissingen"]
[Date "2019.08.10"]
[Round "9.8"]
[White "Bezemer, Arno"]
[Black "Grochal, Joey"]
[Result "1/2-1/2"]
[ECO "E59"]
[WhiteElo "2245"]
[BlackElo "2313"]
[Annotator "NA"]
[PlyCount "52"]
[EventDate "2019.08.03"]
[EventType "swiss"]
[EventCountry "NED"]
[SourceTitle "playchess.com"]
[Source "ChessBase"]
[SourceQuality "1"]
[TimeControl "40/5400+30:1800+30"]

1. d4 {[%emt 0:00:30]} Nf6 {[%emt 0:00:00]} 2. c4 {[%emt 0:00:12]} e6 {[%emt 0:00:00]} 3. Nc3 {[%emt 0:00:06]} Bb4 {[%emt 0:00:00]} 4. e3 {[%emt 0:00:07]} O-O {[%emt 0:00:00]} 5. Bd3 {[%emt 0:00:07]} c5 {[%emt 0:00:20]} 6. Nf3 {[%emt 0:00:59]} d5 {[%emt 0:00:10]} 7. O-O {[%emt 0:00:11]} Nc6 {[%emt 0:00:27]} 8. a3 {[%emt 0:00:22]} Bxc3 {[%emt 0:00:07]} 9. bxc3 {[%emt 0:00:06]} dxc4 {[%emt 0:00:31]} 10. Bxc4 {[%emt 0:00:08]} Qc7 {[%emt 0:00:22]} 11. Ba2 {[%emt 0:01:06]} Rd8 {[%emt 0:02:32]} 12. Qe2 {[%emt 0:01:39]} h6 {[%emt 0:08:09]} 13. Bb2 {[%emt 0:05:12]} e5 {[%emt 0:01:54]} 14. h3 {[%emt 0:00:13]} Bf5 {[%emt 0:05:09]} 15. d5 {[%emt 0:08:11]} Ne7 {[%emt 0:08:46]} 16. c4 {[%emt 0:00:39]} Ng6 {[%emt 0:02:39]} 17. Nd2 {[%emt 0:03:22]} Ne4 {[%emt 0:04:40]} 18. Nxe4 {[%emt 0:04:10]} Bxe4 {[%emt 0:00:02]} 19. Rad1 {[%emt 0:08:25]} Qd6 {[%emt 0:12:51]} 20. Qh5 {[%emt 0:08:42]} Re8 {[%emt 0:01:48]} 21. f3 {[%emt 0:02:16]} Bc2 {[%emt 0:00:16]} 22. Rd2 {[%emt 0:00:09]} Ba4 {[%emt 0:00:46]} 23. f4 {[%emt 0:10:09]} exf4 {[%emt 0:03:38]} 24. exf4 {[%emt 0:00:46]} Nf8 {[%emt 0:01:58]} 25. Bb1 {[%emt 0:05:18]} f6 {[%emt 0:04:11]} 26. g4 {[%emt 0:04:31]} Re3 {[%emt 0:03:37]} 1/2-1/2